[Event "Titled Tuesday Blitz November 29 Early 2022"]
[White "Izuzquiza Gonzalez, Javier"]
[Black "Sukandar, Irine Kharisma"]
[WhiteFideId "3101029"]
[BlackFideId "7101937"]
[WhiteElo "2034"]
[BlackElo "2301"]
[Result "0-1"]
[Round "02"]
[TimeControl "180+1"]
[Date "2022.11.30"]
[WhiteClock "0:00:20"]
[BlackClock "0:00:28"]

1. d4 {[%clk 0:03:00]}  Nf6 {[%clk 0:02:56]} 2. c4 {[%clk 0:03:00]}  c5 {[%clk 0:02:54]} 3. d5 {[%clk 0:02:44]}  b5 {[%clk 0:02:52]} 4. Nf3 {[%clk 0:02:44]}  g6 {[%clk 0:02:49]} 5. cxb5 {[%clk 0:02:37]}  a6 {[%clk 0:02:49]} 6. b6 {[%clk 0:02:37]}  Bg7 {[%clk 0:02:48]} 7. Nc3 {[%clk 0:02:37]}  d6 {[%clk 0:02:47]} 8. a4 {[%clk 0:02:36]}  Qxb6 {[%clk 0:02:46]} 9. e4 {[%clk 0:02:34]}  O-O {[%clk 0:02:45]} 10. Nd2 {[%clk 0:02:33]}  a5 {[%clk 0:02:44]} 11. Bb5 {[%clk 0:02:32]}  Na6 {[%clk 0:02:41]} 12. Nc4 {[%clk 0:02:31]}  Qc7 {[%clk 0:02:41]} 13. O-O {[%clk 0:02:30]}  Nb4 {[%clk 0:02:41]} 14. Bg5 {[%clk 0:02:16]}  Bd7 {[%clk 0:02:38]} 15. Qd2 {[%clk 0:02:11]}  Rfb8 {[%clk 0:02:30]} 16. Rfc1 {[%clk 0:02:00]}  Ng4 {[%clk 0:02:20]} 17. Bxe7 {[%clk 0:01:53]}  Bxb5 {[%clk 0:02:19]} 18. Bxd6 {[%clk 0:01:51]}  Qd8 {[%clk 0:01:41]} 19. axb5 {[%clk 0:01:31]}  Bd4 {[%clk 0:01:21]} 20. Bg3 {[%clk 0:01:09]}  Rb7 {[%clk 0:01:19]} 21. h3 {[%clk 0:01:09]}  Nf6 {[%clk 0:01:16]} 22. b6 {[%clk 0:00:34]}  Bxc3 {[%clk 0:01:07]} 23. bxc3 {[%clk 0:00:31]}  Nxe4 {[%clk 0:01:07]} 24. Qh6 {[%clk 0:00:25]}  Nxg3 {[%clk 0:01:07]} 25. fxg3 {[%clk 0:00:22]}  Nxd5 {[%clk 0:01:01]} 26. Rxa5 {[%clk 0:00:20]}  Rxa5 {[%clk 0:00:53]} 27. Nxa5 {[%clk 0:00:21]}  Rxb6 {[%clk 0:00:53]} 28. Nc4 {[%clk 0:00:21]}  Rb7 {[%clk 0:00:32]} 29. Rd1 {[%clk 0:00:20]}  Rd7 {[%clk 0:00:32]} 30. Ne5 {[%clk 0:00:21]}  Rd6 {[%clk 0:00:32]} 31. c4 {[%clk 0:00:19]}  Nc3 {[%clk 0:00:28]} 32. Rxd6 {[%clk 0:00:19]}  Qxd6 {[%clk 0:00:28]} 33. Ng4 {[%clk 0:00:20]}  Ne2+ {[%clk 0:00:27]} 34. Kh2 {[%clk 0:00:20]}  Qxg3+ {[%clk 0:00:27]} 35. Kh1 {[%clk 0:00:20]}  Qe1+ {[%clk 0:00:27]} 36. Kh2 {[%clk 0:00:20]}  Qg1# {[%clk 0:00:28]} 0-1


[Site "https://www.chess.com"]

[Event "Titled Tuesday Blitz November 29 Early 2022"]
[White "Jain, Naveen"]
[Black "Vysochin, Spartak"]
[WhiteFideId "5003970"]
[BlackFideId "14103516"]
[WhiteElo "2036"]
[BlackElo "2412"]
[Result "1-0"]
[Round "02"]
[TimeControl "180+1"]
[Date "2022.11.30"]
[WhiteClock "0:00:10"]
[BlackClock "0:00:01"]

1. c4 {[%clk 0:02:54]}  c6 {[%clk 0:02:55]} 2. g3 {[%clk 0:02:53]}  d5 {[%clk 0:02:55]} 3. Bg2 {[%clk 0:02:54]}  Nf6 {[%clk 0:02:54]} 4. Nf3 {[%clk 0:02:54]}  Bf5 {[%clk 0:02:55]} 5. Qb3 {[%clk 0:02:53]}  Qb6 {[%clk 0:02:54]} 6. O-O {[%clk 0:02:45]}  e6 {[%clk 0:02:43]} 7. d4 {[%clk 0:02:41]}  Nbd7 {[%clk 0:02:40]} 8. Nc3 {[%clk 0:02:37]}  Be7 {[%clk 0:02:34]} 9. Bf4 {[%clk 0:02:30]}  dxc4 {[%clk 0:02:32]} 10. Qxc4 {[%clk 0:02:18]}  O-O {[%clk 0:02:31]} 11. Nh4 {[%clk 0:01:34]}  Bg6 {[%clk 0:02:02]} 12. Nxg6 {[%clk 0:01:30]}  hxg6 {[%clk 0:02:02]} 13. e4 {[%clk 0:01:30]}  Rac8 {[%clk 0:01:54]} 14. a4 {[%clk 0:01:29]}  Rfd8 {[%clk 0:01:34]} 15. a5 {[%clk 0:01:21]}  Qb4 {[%clk 0:01:31]} 16. Ra4 {[%clk 0:00:57]}  Qxc4 {[%clk 0:01:24]} 17. Rxc4 {[%clk 0:00:58]}  a6 {[%clk 0:01:03]} 18. Rc1 {[%clk 0:00:57]}  Kf8 {[%clk 0:00:58]} 19. e5 {[%clk 0:00:57]}  Nd5 {[%clk 0:00:56]} 20. Nxd5 {[%clk 0:00:52]}  exd5 {[%clk 0:00:52]} 21. Bxd5 {[%clk 0:00:52]}  g5 {[%clk 0:00:35]} 22. Be3 {[%clk 0:00:43]}  f6 {[%clk 0:00:35]} 23. Be6 {[%clk 0:00:35]}  Rc7 {[%clk 0:00:26]} 24. exf6 {[%clk 0:00:20]}  Bxf6 {[%clk 0:00:20]} 25. d5 {[%clk 0:00:20]}  Ne5 {[%clk 0:00:17]} 26. R4c2 {[%clk 0:00:14]}  Nd3 {[%clk 0:00:14]} 27. Bb6 {[%clk 0:00:11]}  Nxc1 {[%clk 0:00:10]} 28. Bxc7 {[%clk 0:00:12]}  Re8 {[%clk 0:00:03]} 29. Rxc1 {[%clk 0:00:09]}  cxd5 {[%clk 0:00:03]} 30. Bxd5 {[%clk 0:00:09]}  Bxb2 {[%clk 0:00:03]} 31. Rb1 {[%clk 0:00:07]}  Bc3 {[%clk 0:00:03]} 32. Bxb7 {[%clk 0:00:07]}  Re7 {[%clk 0:00:02]} 33. Bd6 {[%clk 0:00:06]}  Kf7 {[%clk 0:00:01]} 34. Bxe7 {[%clk 0:00:07]}  Kxe7 {[%clk 0:00:02]} 35. Bxa6 {[%clk 0:00:08]}  Bxa5 {[%clk 0:00:02]} 36. Be2 {[%clk 0:00:08]}  Kf6 {[%clk 0:00:02]} 37. Kg2 {[%clk 0:00:08]}  Bc7 {[%clk 0:00:02]} 38. h3 {[%clk 0:00:08]}  Be5 {[%clk 0:00:02]} 39. g4 {[%clk 0:00:09]}  Bf4 {[%clk 0:00:01]} 40. Rb5 {[%clk 0:00:10]} 1-0


[Site "https://www.chess.com"]

[Event "Titled Tuesday Blitz November 29 Early 2022"]
[White "Kashtanov, Ruslan"]
[Black "Vakhlamov, Igor L."]
[WhiteFideId "4124871"]
[BlackFideId "24126748"]
[WhiteElo "2276"]
[BlackElo "2401"]
[Result "0-1"]
[Round "02"]
[TimeControl "180+1"]
[Date "2022.11.30"]
[WhiteClock "0:00:13"]
[BlackClock "0:00:19"]

1. d4 {[%clk 0:03:00]}  d5 {[%clk 0:02:58]} 2. c4 {[%clk 0:03:00]}  e6 {[%clk 0:02:58]} 3. g3 {[%clk 0:03:00]}  Nf6 {[%clk 0:02:58]} 4. Bg2 {[%clk 0:03:00]}  c5 {[%clk 0:02:58]} 5. cxd5 {[%clk 0:02:59]}  Nxd5 {[%clk 0:02:40]} 6. Nf3 {[%clk 0:02:56]}  Nc6 {[%clk 0:02:39]} 7. O-O {[%clk 0:02:55]}  Be7 {[%clk 0:02:29]} 8. dxc5 {[%clk 0:02:49]}  Bxc5 {[%clk 0:02:30]} 9. a3 {[%clk 0:02:32]}  a5 {[%clk 0:02:25]} 10. e4 {[%clk 0:02:21]}  Nf6 {[%clk 0:02:26]} 11. Qe2 {[%clk 0:02:19]}  O-O {[%clk 0:02:24]} 12. Rd1 {[%clk 0:02:17]}  Qe7 {[%clk 0:02:19]} 13. Nc3 {[%clk 0:01:50]}  Ng4 {[%clk 0:02:06]} 14. Rf1 {[%clk 0:01:39]}  Bd7 {[%clk 0:02:06]} 15. e5 {[%clk 0:01:33]}  f6 {[%clk 0:01:41]} 16. exf6 {[%clk 0:01:28]}  Nxf6 {[%clk 0:01:42]} 17. Bf4 {[%clk 0:01:20]}  Rae8 {[%clk 0:01:29]} 18. Rae1 {[%clk 0:00:50]}  Kh8 {[%clk 0:01:12]} 19. Qc4 {[%clk 0:00:49]}  b6 {[%clk 0:01:05]} 20. Re2 {[%clk 0:00:45]}  Qf7 {[%clk 0:00:48]} 21. Ng5 {[%clk 0:00:28]}  Qg8 {[%clk 0:00:48]} 22. Rfe1 {[%clk 0:00:20]}  Nd4 {[%clk 0:00:46]} 23. Rd2 {[%clk 0:00:17]}  h6 {[%clk 0:00:19]} 24. Nge4 {[%clk 0:00:17]}  Nxe4 {[%clk 0:00:19]} 25. Nxe4 {[%clk 0:00:17]}  e5 {[%clk 0:00:20]} 26. Be3 {[%clk 0:00:13]}  Qxc4 {[%clk 0:00:19]} 0-1


[Site "https://www.chess.com"]

[Event "Titled Tuesday Blitz November 29 Early 2022"]
[White "Kezin, Roman"]
[Black "Baches Garcia, Guillermo"]
[WhiteFideId "24124621"]
[BlackFideId "2209764"]
[WhiteElo "2501"]
[BlackElo "2465"]
[Result "1-0"]
[Round "02"]
[TimeControl "180+1"]
[Date "2022.11.30"]
[WhiteClock "0:00:03"]
[BlackClock "0:00:13"]

1. d4 {[%clk 0:02:51]}  Nf6 {[%clk 0:03:00]} 2. c4 {[%clk 0:02:39]}  e6 {[%clk 0:03:00]} 3. Nc3 {[%clk 0:02:37]}  d5 {[%clk 0:03:00]} 4. Nf3 {[%clk 0:02:36]}  c5 {[%clk 0:03:00]} 5. e3 {[%clk 0:02:35]}  a6 {[%clk 0:02:59]} 6. a3 {[%clk 0:02:32]}  dxc4 {[%clk 0:02:56]} 7. Bxc4 {[%clk 0:02:28]}  b5 {[%clk 0:02:56]} 8. Ba2 {[%clk 0:02:23]}  Bb7 {[%clk 0:02:53]} 9. O-O {[%clk 0:02:07]}  Nbd7 {[%clk 0:02:50]} 10. Qe2 {[%clk 0:01:30]}  Qb6 {[%clk 0:02:50]} 11. Rd1 {[%clk 0:01:29]}  Be7 {[%clk 0:02:31]} 12. e4 {[%clk 0:01:19]}  cxd4 {[%clk 0:02:31]} 13. Nxd4 {[%clk 0:01:19]}  O-O {[%clk 0:02:18]} 14. e5 {[%clk 0:01:12]}  Bc5 {[%clk 0:02:07]} 15. exf6 {[%clk 0:00:59]}  Bxd4 {[%clk 0:02:07]} 16. fxg7 {[%clk 0:00:59]}  Rfd8 {[%clk 0:01:53]} 17. Bg5 {[%clk 0:00:58]}  Nf6 {[%clk 0:01:34]} 18. Rxd4 {[%clk 0:00:51]}  Qxd4 {[%clk 0:01:34]} 19. Rd1 {[%clk 0:00:50]}  Qc5 {[%clk 0:01:18]} 20. Bxf6 {[%clk 0:00:47]}  Rxd1+ {[%clk 0:01:16]} 21. Qxd1 {[%clk 0:00:46]}  Qf5 {[%clk 0:01:14]} 22. Qd4 {[%clk 0:00:35]}  e5 {[%clk 0:00:59]} 23. Qxe5 {[%clk 0:00:31]}  Qg4 {[%clk 0:00:43]} 24. Bd5 {[%clk 0:00:29]}  Bxd5 {[%clk 0:00:30]} 25. Qxd5 {[%clk 0:00:30]}  Re8 {[%clk 0:00:27]} 26. g3 {[%clk 0:00:25]}  Qg6 {[%clk 0:00:23]} 27. Qf3 {[%clk 0:00:23]}  h5 {[%clk 0:00:20]} 28. Nd5 {[%clk 0:00:22]}  h4 {[%clk 0:00:18]} 29. Ne7+ {[%clk 0:00:20]}  Rxe7 {[%clk 0:00:18]} 30. Bxe7 {[%clk 0:00:21]}  h3 {[%clk 0:00:18]} 31. Qa8+ {[%clk 0:00:18]}  Kxg7 {[%clk 0:00:17]} 32. f3 {[%clk 0:00:03]}  Qc2 {[%clk 0:00:17]} 33. Bf8+ {[%clk 0:00:02]}  Kh7 {[%clk 0:00:17]} 34. f4 {[%clk 0:00:03]}  Qe2 {[%clk 0:00:15]} 35. Bb4 {[%clk 0:00:03]}  Qe3+ {[%clk 0:00:14]} 36. Kf1 {[%clk 0:00:03]}  Qd3+ {[%clk 0:00:15]} 37. Kf2 {[%clk 0:00:03]}  Qc2+ {[%clk 0:00:14]} 38. Ke3 {[%clk 0:00:03]}  Qb3+ {[%clk 0:00:14]} 39. Kd4 {[%clk 0:00:03]}  Qd1+ {[%clk 0:00:13]} 40. Kc5 {[%clk 0:00:03]}  Qc2+ {[%clk 0:00:13]} 41. Kb6 {[%clk 0:00:03]}  Qg2 {[%clk 0:00:13]} 42. Qe8 {[%clk 0:00:02]}  Qb7+ {[%clk 0:00:13]} 43. Kxb7 {[%clk 0:00:02]}  Kg6 {[%clk 0:00:14]} 44. Qg8+ {[%clk 0:00:02]}  Kh5 {[%clk 0:00:15]} 45. Bc3 {[%clk 0:00:03]}  f5 {[%clk 0:00:13]} 46. Qg5# {[%clk 0:00:03]} 1-0


[Site "https://www.chess.com"]

[Event "Titled Tuesday Blitz November 29 Early 2022"]
[White "Khandelwal, Ankush"]
[Black "Shipov, Sergei"]
[WhiteFideId "413470"]
[BlackFideId "4113624"]
[WhiteElo "2271"]
[BlackElo "2801"]
[Result "0-1"]
[Round "02"]
[TimeControl "180+1"]
[Date "2022.11.30"]
[WhiteClock "0:00:05"]
[BlackClock "0:01:05"]

1. e4 {[%clk 0:02:51]}  e6 {[%clk 0:02:59]} 2. d4 {[%clk 0:02:50]}  d5 {[%clk 0:02:57]} 3. Nc3 {[%clk 0:02:51]}  Bb4 {[%clk 0:02:57]} 4. exd5 {[%clk 0:02:50]}  exd5 {[%clk 0:02:57]} 5. Bd3 {[%clk 0:02:51]}  Nc6 {[%clk 0:02:57]} 6. a3 {[%clk 0:02:46]}  Ba5 {[%clk 0:02:56]} 7. Ne2 {[%clk 0:02:45]}  Nge7 {[%clk 0:02:55]} 8. Bg5 {[%clk 0:02:15]}  O-O {[%clk 0:02:52]} 9. Qd2 {[%clk 0:02:15]}  f6 {[%clk 0:02:47]} 10. Bf4 {[%clk 0:02:14]}  Bf5 {[%clk 0:02:46]} 11. O-O-O {[%clk 0:02:10]}  Qd7 {[%clk 0:02:46]} 12. Bxf5 {[%clk 0:01:55]}  Nxf5 {[%clk 0:02:45]} 13. g4 {[%clk 0:01:55]}  Nd6 {[%clk 0:02:45]} 14. Bxd6 {[%clk 0:01:38]}  Qxd6 {[%clk 0:02:45]} 15. Kb1 {[%clk 0:01:34]}  a6 {[%clk 0:02:38]} 16. Ng3 {[%clk 0:01:33]}  b5 {[%clk 0:02:32]} 17. Nf5 {[%clk 0:01:33]}  Qd7 {[%clk 0:02:32]} 18. Rhg1 {[%clk 0:01:14]}  b4 {[%clk 0:02:31]} 19. axb4 {[%clk 0:01:13]}  Bxb4 {[%clk 0:02:32]} 20. Qd3 {[%clk 0:01:09]}  Rab8 {[%clk 0:02:21]} 21. Rg3 {[%clk 0:00:37]}  g6 {[%clk 0:02:12]} 22. Ne3 {[%clk 0:00:29]}  Ne7 {[%clk 0:02:11]} 23. h4 {[%clk 0:00:26]}  Bd6 {[%clk 0:02:08]} 24. Rh3 {[%clk 0:00:23]}  Rb6 {[%clk 0:02:07]} 25. h5 {[%clk 0:00:22]}  Rfb8 {[%clk 0:02:05]} 26. b3 {[%clk 0:00:23]}  g5 {[%clk 0:01:57]} 27. Nexd5 {[%clk 0:00:19]}  Bf4 {[%clk 0:01:35]} 28. Nxb6 {[%clk 0:00:18]}  Rxb6 {[%clk 0:01:35]} 29. d5 {[%clk 0:00:16]}  Qxg4 {[%clk 0:01:35]} 30. Ne4 {[%clk 0:00:14]}  Be5 {[%clk 0:01:31]} 31. Re3 {[%clk 0:00:11]}  a5 {[%clk 0:01:27]} 32. Qc4 {[%clk 0:00:11]}  Rb4 {[%clk 0:01:25]} 33. Qd3 {[%clk 0:00:10]}  a4 {[%clk 0:01:25]} 34. f3 {[%clk 0:00:10]}  Qf4 {[%clk 0:01:20]} 35. d6 {[%clk 0:00:10]}  cxd6 {[%clk 0:01:18]} 36. Ree1 {[%clk 0:00:06]}  axb3 {[%clk 0:01:18]} 37. cxb3 {[%clk 0:00:07]}  d5 {[%clk 0:01:17]} 38. Nd2 {[%clk 0:00:06]}  Rb7 {[%clk 0:01:09]} 39. Rc1 {[%clk 0:00:06]}  Qb4 {[%clk 0:01:08]} 40. Rc8+ {[%clk 0:00:06]}  Nxc8 {[%clk 0:01:07]} 41. Rc1 {[%clk 0:00:06]}  Ne7 {[%clk 0:01:07]} 42. h6 {[%clk 0:00:05]}  Qa3 {[%clk 0:01:06]} 43. Kc2 {[%clk 0:00:05]}  Rc7+ {[%clk 0:01:06]} 44. Kd1 {[%clk 0:00:05]}  Qxc1+ {[%clk 0:01:05]} 0-1


[Site "https://www.chess.com"]

[Event "Titled Tuesday Blitz November 29 Early 2022"]
[White "Kleiman, Jake"]
[Black "Bortnyk, Olexandr"]
[WhiteFideId "2020041"]
[BlackFideId "14120828"]
[WhiteElo "2622"]
[BlackElo "2723"]
[Result "0-1"]
[Round "02"]
[TimeControl "180+1"]
[Date "2022.11.30"]
[WhiteClock "0:00:09"]
[BlackClock "0:00:06"]

1. e4 {[%clk 0:02:59]}  Nf6 {[%clk 0:02:58]} 2. e5 {[%clk 0:03:00]}  Nd5 {[%clk 0:02:58]} 3. d4 {[%clk 0:03:01]}  d6 {[%clk 0:02:59]} 4. Nf3 {[%clk 0:03:01]}  dxe5 {[%clk 0:02:59]} 5. Nxe5 {[%clk 0:03:02]}  c6 {[%clk 0:02:59]} 6. Be2 {[%clk 0:03:00]}  Bf5 {[%clk 0:02:59]} 7. Bg4 {[%clk 0:03:00]}  Bxg4 {[%clk 0:02:55]} 8. Qxg4 {[%clk 0:02:59]}  Nd7 {[%clk 0:02:54]} 9. Nxd7 {[%clk 0:02:59]}  Qxd7 {[%clk 0:02:55]} 10. Qxd7+ {[%clk 0:02:59]}  Kxd7 {[%clk 0:02:56]} 11. c4 {[%clk 0:02:59]}  Nb4 {[%clk 0:02:48]} 12. Kd2 {[%clk 0:02:58]}  g6 {[%clk 0:02:41]} 13. a3 {[%clk 0:02:52]}  Na6 {[%clk 0:02:40]} 14. Nc3 {[%clk 0:02:50]}  Bg7 {[%clk 0:02:39]} 15. Kd3 {[%clk 0:02:43]}  Rhd8 {[%clk 0:02:23]} 16. Be3 {[%clk 0:02:42]}  Ke8 {[%clk 0:02:22]} 17. Rad1 {[%clk 0:02:20]}  Nc5+ {[%clk 0:02:08]} 18. Kc2 {[%clk 0:02:16]}  Ne6 {[%clk 0:02:09]} 19. d5 {[%clk 0:02:03]}  cxd5 {[%clk 0:02:10]} 20. Rxd5 {[%clk 0:01:26]}  Rxd5 {[%clk 0:01:34]} 21. Nxd5 {[%clk 0:01:23]}  Rc8 {[%clk 0:01:34]} 22. b3 {[%clk 0:01:17]}  b5 {[%clk 0:01:32]} 23. Kd3 {[%clk 0:01:13]}  bxc4+ {[%clk 0:01:28]} 24. bxc4 {[%clk 0:01:14]}  Rb8 {[%clk 0:01:28]} 25. c5 {[%clk 0:00:43]}  Kd7 {[%clk 0:00:58]} 26. Kc4 {[%clk 0:00:41]}  Nc7 {[%clk 0:00:27]} 27. Nb4 {[%clk 0:00:32]}  a5 {[%clk 0:00:12]} 28. Rd1+ {[%clk 0:00:31]}  Ke6 {[%clk 0:00:13]} 29. Nc6 {[%clk 0:00:30]}  Rb2 {[%clk 0:00:13]} 30. Nd8+ {[%clk 0:00:21]}  Kf5 {[%clk 0:00:13]} 31. Rd7 {[%clk 0:00:20]}  Nb5 {[%clk 0:00:10]} 32. a4 {[%clk 0:00:16]}  Na3+ {[%clk 0:00:09]} 33. Kd3 {[%clk 0:00:16]}  Rb3+ {[%clk 0:00:09]} 34. Ke2 {[%clk 0:00:16]}  Nc4 {[%clk 0:00:03]} 35. c6 {[%clk 0:00:13]}  Rb2+ {[%clk 0:00:04]} 36. Kd3 {[%clk 0:00:12]}  Ne5+ {[%clk 0:00:04]} 37. Kc3 {[%clk 0:00:07]}  Nxd7+ {[%clk 0:00:05]} 38. Kc4 {[%clk 0:00:07]}  Ne5+ {[%clk 0:00:04]} 39. Kd5 {[%clk 0:00:07]}  e6+ {[%clk 0:00:02]} 40. Kd6 {[%clk 0:00:06]}  Bf8+ {[%clk 0:00:03]} 41. Kc7 {[%clk 0:00:06]}  Be7 {[%clk 0:00:02]} 42. Nb7 {[%clk 0:00:06]}  Rc2 {[%clk 0:00:03]} 43. Nxa5 {[%clk 0:00:05]}  Bb4 {[%clk 0:00:03]} 44. Bb6 {[%clk 0:00:04]}  Bxa5 {[%clk 0:00:03]} 45. Bxa5 {[%clk 0:00:05]}  Nxc6 {[%clk 0:00:02]} 46. Bb6 {[%clk 0:00:05]}  Rc4 {[%clk 0:00:03]} 47. Kb7 {[%clk 0:00:05]}  Rxa4 {[%clk 0:00:02]} 48. Kxc6 {[%clk 0:00:06]}  Rc4+ {[%clk 0:00:02]} 49. Kb5 {[%clk 0:00:06]}  Rc2 {[%clk 0:00:03]} 50. Be3 {[%clk 0:00:06]}  h5 {[%clk 0:00:04]} 51. h4 {[%clk 0:00:06]}  f6 {[%clk 0:00:04]} 52. g3 {[%clk 0:00:07]}  g5 {[%clk 0:00:04]} 53. hxg5 {[%clk 0:00:07]}  fxg5 {[%clk 0:00:05]} 54. Kb4 {[%clk 0:00:08]}  h4 {[%clk 0:00:06]} 55. Kb3 {[%clk 0:00:08]}  Re2 {[%clk 0:00:06]} 56. g4+ {[%clk 0:00:09]}  Kxg4 {[%clk 0:00:06]} 0-1


[Site "https://www.chess.com"]

[Event "Titled Tuesday Blitz November 29 Early 2022"]
[White "Korchmar, Vasiliy"]
[Black "Ovezdurdyyeva, Jemal"]
[WhiteFideId "24131750"]
[BlackFideId "14001888"]
[WhiteElo "2370"]
[BlackElo "1961"]
[Result "1-0"]
[Round "02"]
[TimeControl "180+1"]
[Date "2022.11.30"]
[WhiteClock "0:01:53"]
[BlackClock "0:02:27"]

1. e4 {[%clk 0:03:00]}  d6 {[%clk 0:02:59]} 2. d4 {[%clk 0:03:00]}  Nf6 {[%clk 0:03:00]} 3. Nc3 {[%clk 0:03:01]}  g6 {[%clk 0:03:01]} 4. f4 {[%clk 0:03:00]}  c6 {[%clk 0:03:01]} 5. Nf3 {[%clk 0:03:00]}  b5 {[%clk 0:03:01]} 6. Bd3 {[%clk 0:02:59]}  Bg7 {[%clk 0:03:01]} 7. O-O {[%clk 0:02:59]}  a6 {[%clk 0:02:59]} 8. e5 {[%clk 0:02:51]}  dxe5 {[%clk 0:02:58]} 9. fxe5 {[%clk 0:02:48]}  Nd5 {[%clk 0:02:58]} 10. Ne4 {[%clk 0:02:47]}  O-O {[%clk 0:02:57]} 11. c3 {[%clk 0:02:46]}  f6 {[%clk 0:02:55]} 12. Bd2 {[%clk 0:02:36]}  Nd7 {[%clk 0:02:54]} 13. e6 {[%clk 0:02:27]}  N7b6 {[%clk 0:02:52]} 14. Nc5 {[%clk 0:02:28]}  Na4 {[%clk 0:02:44]} 15. Nxa4 {[%clk 0:02:27]}  bxa4 {[%clk 0:02:44]} 16. Qxa4 {[%clk 0:02:27]}  Bxe6 {[%clk 0:02:41]} 17. Qxc6 {[%clk 0:02:27]}  Bf7 {[%clk 0:02:41]} 18. Bxa6 {[%clk 0:02:07]}  Rb8 {[%clk 0:02:27]} 19. b4 {[%clk 0:01:53]} 1-0


[Site "https://www.chess.com"]

[Event "Titled Tuesday Blitz November 29 Early 2022"]
[White "Kukreja, Sankalp"]
[Black "Kuchava, Ana"]
[WhiteFideId "45027676"]
[BlackFideId "13605348"]
[WhiteElo "2154"]
[BlackElo "2001"]
[Result "1-0"]
[Round "02"]
[TimeControl "180+1"]
[Date "2022.11.30"]
[WhiteClock "0:00:35"]
[BlackClock "0:00:04"]

1. e4 {[%clk 0:03:00]}  c5 {[%clk 0:02:57]} 2. Nf3 {[%clk 0:03:00]}  d6 {[%clk 0:02:56]} 3. d4 {[%clk 0:02:59]}  cxd4 {[%clk 0:02:54]} 4. Nxd4 {[%clk 0:03:00]}  Nf6 {[%clk 0:02:54]} 5. Nc3 {[%clk 0:03:00]}  Nc6 {[%clk 0:02:53]} 6. Be2 {[%clk 0:02:48]}  g6 {[%clk 0:02:49]} 7. Be3 {[%clk 0:02:36]}  Bg7 {[%clk 0:02:44]} 8. O-O {[%clk 0:02:36]}  O-O {[%clk 0:02:43]} 9. f4 {[%clk 0:02:35]}  a6 {[%clk 0:02:27]} 10. Bf3 {[%clk 0:02:30]}  Qc7 {[%clk 0:02:18]} 11. h3 {[%clk 0:02:08]}  Nd7 {[%clk 0:01:58]} 12. Qd2 {[%clk 0:01:48]}  Na5 {[%clk 0:01:49]} 13. Nd5 {[%clk 0:01:44]}  Qd8 {[%clk 0:01:46]} 14. Nxe7+ {[%clk 0:01:29]}  Qxe7 {[%clk 0:01:42]} 15. Qxa5 {[%clk 0:01:28]}  Nc5 {[%clk 0:01:37]} 16. e5 {[%clk 0:01:12]}  dxe5 {[%clk 0:01:14]} 17. Nc6 {[%clk 0:01:03]}  bxc6 {[%clk 0:01:01]} 18. Bxc5 {[%clk 0:01:03]}  Qe6 {[%clk 0:00:44]} 19. Bxf8 {[%clk 0:00:58]}  Bxf8 {[%clk 0:00:40]} 20. Qxe5 {[%clk 0:00:55]}  Qxe5 {[%clk 0:00:33]} 21. fxe5 {[%clk 0:00:56]}  Bc5+ {[%clk 0:00:33]} 22. Kh1 {[%clk 0:00:55]}  Bf5 {[%clk 0:00:33]} 23. Bxc6 {[%clk 0:00:49]}  Rc8 {[%clk 0:00:23]} 24. Ba4 {[%clk 0:00:49]}  Bd4 {[%clk 0:00:21]} 25. c3 {[%clk 0:00:49]}  Bxe5 {[%clk 0:00:19]} 26. Bb3 {[%clk 0:00:49]}  h5 {[%clk 0:00:13]} 27. Rae1 {[%clk 0:00:49]}  Bg7 {[%clk 0:00:12]} 28. Re7 {[%clk 0:00:47]}  Rf8 {[%clk 0:00:07]} 29. Rxf7 {[%clk 0:00:34]}  Rxf7 {[%clk 0:00:06]} 30. Bxf7+ {[%clk 0:00:35]}  Kxf7 {[%clk 0:00:05]} 31. g4 {[%clk 0:00:35]}  hxg4 {[%clk 0:00:05]} 32. hxg4 {[%clk 0:00:36]}  Ke6 {[%clk 0:00:05]} 33. gxf5+ {[%clk 0:00:37]}  gxf5 {[%clk 0:00:06]} 34. Kg2 {[%clk 0:00:38]}  Bf8 {[%clk 0:00:06]} 35. Kf3 {[%clk 0:00:38]}  Bc5 {[%clk 0:00:06]} 36. Re1+ {[%clk 0:00:38]}  Kf6 {[%clk 0:00:05]} 37. b4 {[%clk 0:00:38]}  Bb6 {[%clk 0:00:04]} 38. c4 {[%clk 0:00:38]}  a5 {[%clk 0:00:05]} 39. c5 {[%clk 0:00:38]}  Bc7 {[%clk 0:00:04]} 40. b5 {[%clk 0:00:38]}  Be5 {[%clk 0:00:04]} 41. c6 {[%clk 0:00:35]}  Bd4 {[%clk 0:00:04]} 42. c7 {[%clk 0:00:35]} 1-0


[Site "https://www.chess.com"]

[Event "Titled Tuesday Blitz November 29 Early 2022"]
[White "Kulkarni, Vikramaditya"]
[Black "Urazayev, Arystanbek"]
[WhiteFideId "5009847"]
[BlackFideId "13709810"]
[WhiteElo "2273"]
[BlackElo "2441"]
[Result "1-0"]
[Round "02"]
[TimeControl "180+1"]
[Date "2022.11.30"]
[WhiteClock "0:00:24"]
[BlackClock "0:00:48"]

1. d4 {[%clk 0:03:00]}  Nf6 {[%clk 0:02:59]} 2. Nf3 {[%clk 0:02:59]}  g6 {[%clk 0:02:59]} 3. c4 {[%clk 0:02:58]}  Bg7 {[%clk 0:03:00]} 4. Nc3 {[%clk 0:02:58]}  O-O {[%clk 0:03:00]} 5. e4 {[%clk 0:02:56]}  d6 {[%clk 0:03:01]} 6. h3 {[%clk 0:02:54]}  c5 {[%clk 0:03:00]} 7. Be2 {[%clk 0:02:45]}  cxd4 {[%clk 0:03:00]} 8. Nxd4 {[%clk 0:02:44]}  Nc6 {[%clk 0:03:00]} 9. Be3 {[%clk 0:02:42]}  Bd7 {[%clk 0:03:01]} 10. Nc2 {[%clk 0:02:40]}  Rc8 {[%clk 0:03:00]} 11. Qd2 {[%clk 0:02:39]}  a6 {[%clk 0:02:58]} 12. Rc1 {[%clk 0:02:34]}  Ne5 {[%clk 0:02:58]} 13. b3 {[%clk 0:02:33]}  b5 {[%clk 0:02:59]} 14. f4 {[%clk 0:02:26]}  b4 {[%clk 0:02:58]} 15. Nxb4 {[%clk 0:02:16]}  a5 {[%clk 0:02:54]} 16. Nbd5 {[%clk 0:01:58]}  Nc6 {[%clk 0:02:48]} 17. O-O {[%clk 0:01:56]}  e6 {[%clk 0:02:34]} 18. Bb6 {[%clk 0:01:46]}  Qe8 {[%clk 0:02:34]} 19. Nxf6+ {[%clk 0:01:46]}  Bxf6 {[%clk 0:02:35]} 20. Qxd6 {[%clk 0:01:44]}  Nd4 {[%clk 0:02:26]} 21. Bxd4 {[%clk 0:01:36]}  Rc6 {[%clk 0:02:26]} 22. Qxf8+ {[%clk 0:01:35]}  Qxf8 {[%clk 0:02:21]} 23. Bxf6 {[%clk 0:01:35]}  Qc5+ {[%clk 0:02:21]} 24. Kh1 {[%clk 0:01:34]}  Rd6 {[%clk 0:01:29]} 25. Be7 {[%clk 0:01:28]}  Qc7 {[%clk 0:01:27]} 26. Nb5 {[%clk 0:01:19]}  Bxb5 {[%clk 0:01:27]} 27. Bxd6 {[%clk 0:01:19]}  Qxd6 {[%clk 0:01:24]} 28. cxb5 {[%clk 0:01:19]}  Kg7 {[%clk 0:01:20]} 29. e5 {[%clk 0:01:15]}  Qb4 {[%clk 0:01:20]} 30. g3 {[%clk 0:01:07]}  h5 {[%clk 0:01:20]} 31. h4 {[%clk 0:01:06]}  a4 {[%clk 0:01:20]} 32. bxa4 {[%clk 0:01:04]}  Qxa4 {[%clk 0:01:21]} 33. Kg2 {[%clk 0:00:59]}  Qxa2 {[%clk 0:01:18]} 34. Rf2 {[%clk 0:00:56]}  Qb2 {[%clk 0:01:14]} 35. Rd1 {[%clk 0:00:52]}  Qb3 {[%clk 0:01:12]} 36. Rd2 {[%clk 0:00:47]}  Qb4 {[%clk 0:01:10]} 37. Rc2 {[%clk 0:00:44]}  Qb1 {[%clk 0:01:04]} 38. Bf1 {[%clk 0:00:41]}  f6 {[%clk 0:01:02]} 39. exf6+ {[%clk 0:00:36]}  Kxf6 {[%clk 0:01:02]} 40. Rb2 {[%clk 0:00:35]}  Qe4+ {[%clk 0:01:02]} 41. Kh2 {[%clk 0:00:35]}  Qb7 {[%clk 0:00:54]} 42. b6 {[%clk 0:00:33]}  Kg7 {[%clk 0:00:54]} 43. Bg2 {[%clk 0:00:32]}  Qb8 {[%clk 0:00:55]} 44. b7 {[%clk 0:00:31]}  Kh6 {[%clk 0:00:56]} 45. Rbc2 {[%clk 0:00:26]}  e5 {[%clk 0:00:47]} 46. fxe5 {[%clk 0:00:26]}  Qxe5 {[%clk 0:00:48]} 47. Rc8 {[%clk 0:00:24]} 1-0


[Site "https://www.chess.com"]